[Event "Late-Titled-Tuesday-Blitz-March-12-2024"]
[Site "Chess.com"]
[Date "2024.03.12"]
[Round "3"]
[White "reevecanada"]
[Black "Marcan2b"]
[Result "0-1"]
[WhiteElo "2636"]
[BlackElo "2933"]
[TimeControl "180+1"]
[EndTime "14:27:44 PDT"]
[Termination "Marcan2b won by resignation"]

1. e4 {[%clk 0:02:50.7]} 1... c5 {[%clk 0:02:58.6]} 2. Nf3 {[%clk 0:02:50.2]}
2... Nc6 {[%clk 0:02:57.9]} 3. b3 {[%clk 0:02:49.6]} 3... e5 {[%clk 0:02:54.2]}
4. Bb2 {[%clk 0:02:48.9]} 4... d6 {[%clk 0:02:54.1]} 5. c3 {[%clk 0:02:49]} 5...
Nf6 {[%clk 0:02:53.7]} 6. Bd3 {[%clk 0:02:45.3]} 6... g6 {[%clk 0:02:48.8]} 7.
Bc2 {[%clk 0:02:43.5]} 7... Bg7 {[%clk 0:02:49.7]} 8. O-O {[%clk 0:02:43.5]}
8... O-O {[%clk 0:02:49.4]} 9. d4 {[%clk 0:02:42.1]} 9... cxd4 {[%clk
0:02:45.9]} 10. cxd4 {[%clk 0:02:42.5]} 10... Bg4 {[%clk 0:02:38.5]} 11. d5
{[%clk 0:02:41.2]} 11... Nd4 {[%clk 0:02:28.8]} 12. Nbd2 {[%clk 0:02:37.1]}
12... Rc8 {[%clk 0:02:20.7]} 13. Bd3 {[%clk 0:02:32.6]} 13... Nd7 {[%clk
0:02:03.5]} 14. h3 {[%clk 0:02:27]} 14... Bxf3 {[%clk 0:02:00.9]} 15. Nxf3
{[%clk 0:02:27.9]} 15... Nc5 {[%clk 0:02:00.6]} 16. Nxd4 {[%clk 0:02:14.8]}
16... exd4 {[%clk 0:01:59.5]} 17. Re1 {[%clk 0:02:13.1]} 17... Re8 {[%clk
0:01:59.3]} 18. Qd2 {[%clk 0:02:10.1]} 18... a5 {[%clk 0:01:56.7]} 19. Rad1
{[%clk 0:02:07.9]} 19... Qh4 {[%clk 0:01:52.9]} 20. f3 {[%clk 0:01:56.8]} 20...
Bh6 {[%clk 0:01:47.1]} 21. Qf2 {[%clk 0:01:23.7]} 21... Be3 {[%clk 0:01:45.9]}
22. Rxe3 {[%clk 0:01:24.3]} 22... Qxf2+ {[%clk 0:01:45.7]} 23. Kxf2 {[%clk
0:01:24.9]} 23... dxe3+ {[%clk 0:01:46.4]} 24. Kxe3 {[%clk 0:01:25.5]} 24... f5
{[%clk 0:01:43.3]} 25. Rf1 {[%clk 0:01:19]} 25... Rc7 {[%clk 0:01:40.9]} 26. Kd4
{[%clk 0:01:07.5]} 26... a4 {[%clk 0:01:23.7]} 27. b4 {[%clk 0:00:55.8]} 27...
Nxd3 {[%clk 0:01:22.6]} 28. Kxd3 {[%clk 0:00:56.7]} 28... b5 {[%clk 0:01:22.7]}
29. Rc1 {[%clk 0:00:52.9]} 29... Rxc1 {[%clk 0:01:20.6]} 30. Bxc1 {[%clk
0:00:53.8]} 30... Kf7 {[%clk 0:01:17.2]} 31. Kd4 {[%clk 0:00:48.7]} 31... Rc8
{[%clk 0:01:16.2]} 32. Bf4 {[%clk 0:00:45.7]} 32... Rc4+ {[%clk 0:01:15.5]} 33.
Kd3 {[%clk 0:00:46.1]} 33... Ke7 {[%clk 0:00:50.7]} 34. Bd2 {[%clk 0:00:41]}
34... h5 {[%clk 0:00:48.8]} 35. h4 {[%clk 0:00:37.7]} 35... a3 {[%clk
0:00:38.1]} 36. Bc3 {[%clk 0:00:31.6]} 36... Kf7 {[%clk 0:00:36.5]} 37. Bd2
{[%clk 0:00:30.5]} 37... Rc8 {[%clk 0:00:34.6]} 38. Bf4 {[%clk 0:00:28]} 38...
Ke7 {[%clk 0:00:34.9]} 39. Bg5+ {[%clk 0:00:27.7]} 39... Kd7 {[%clk 0:00:34.9]}
40. Bd2 {[%clk 0:00:28.3]} 40... fxe4+ {[%clk 0:00:35.4]} 41. fxe4 {[%clk
0:00:27.7]} 41... Rf8 {[%clk 0:00:36.1]} 42. Ke2 {[%clk 0:00:27.5]} 42... Rc8
{[%clk 0:00:30.1]} 43. Kd3 {[%clk 0:00:26.9]} 43... Rc4 {[%clk 0:00:27.8]} 44.
Bc3 {[%clk 0:00:26.7]} 44... Ke7 {[%clk 0:00:26.2]} 45. Bd2 {[%clk 0:00:26.6]}
45... Kf7 {[%clk 0:00:24.4]} 46. Bc3 {[%clk 0:00:24.6]} 46... g5 {[%clk
0:00:22.6]} 47. hxg5 {[%clk 0:00:24]} 47... Kg6 {[%clk 0:00:23.3]} 48. Bd2
{[%clk 0:00:24.5]} 48... h4 {[%clk 0:00:20.1]} 49. Bf4 {[%clk 0:00:18.9]} 49...
Rxb4 {[%clk 0:00:20.5]} 50. Bxd6 {[%clk 0:00:19.3]} 50... Rb2 {[%clk 0:00:21.1]}
51. e5 {[%clk 0:00:18.8]} 51... Rxa2 {[%clk 0:00:19.8]} 52. e6 {[%clk
0:00:19.3]} 52... Ra1 {[%clk 0:00:19.3]} 53. e7 {[%clk 0:00:19.4]} 53... Re1
{[%clk 0:00:18.1]} 54. Kd2 {[%clk 0:00:18.2]} 54... a2 {[%clk 0:00:17.5]} 55.
Kxe1 {[%clk 0:00:15.3]} 55... a1=Q+ {[%clk 0:00:17.8]} 56. Ke2 {[%clk
0:00:15.7]} 56... Qa8 {[%clk 0:00:16.6]} 57. Kd3 {[%clk 0:00:14.7]} 57... Qxd5+
{[%clk 0:00:16]} 0-1

[Event "Late-Titled-Tuesday-Blitz-March-12-2024"]
[Site "Chess.com"]
[Date "2024.03.12"]
[Round "3"]
[White "SchmakAttack"]
[Black "Grischuk"]
[Result "0-1"]
[WhiteElo "2810"]
[BlackElo "3074"]
[TimeControl "180+1"]
[EndTime "14:27:48 PDT"]
[Termination "Grischuk won by resignation"]

1. d4 {[%clk 0:03:00.9]} 1... e6 {[%clk 0:02:59.2]} 2. c4 {[%clk 0:02:59.4]}
2... b6 {[%clk 0:02:59]} 3. Nf3 {[%clk 0:02:51.3]} 3... Bb7 {[%clk 0:02:58.5]}
4. g3 {[%clk 0:02:51.8]} 4... Bb4+ {[%clk 0:02:49.8]} 5. Bd2 {[%clk 0:02:48.4]}
5... a5 {[%clk 0:02:49.8]} 6. Bg2 {[%clk 0:02:47.9]} 6... f5 {[%clk 0:02:49.5]}
7. O-O {[%clk 0:02:44.1]} 7... Nf6 {[%clk 0:02:50.1]} 8. a3 {[%clk 0:02:27.3]}
8... Bxd2 {[%clk 0:02:48.4]} 9. Qxd2 {[%clk 0:02:27.4]} 9... O-O {[%clk
0:02:42.1]} 10. Nc3 {[%clk 0:02:18.7]} 10... Ne4 {[%clk 0:02:29.1]} 11. Qc2
{[%clk 0:02:19.1]} 11... Nxc3 {[%clk 0:02:24]} 12. Qxc3 {[%clk 0:02:20]} 12...
Be4 {[%clk 0:02:22.9]} 13. b4 {[%clk 0:02:16.3]} 13... Nc6 {[%clk 0:02:12.4]}
14. b5 {[%clk 0:01:38.8]} 14... Ne7 {[%clk 0:02:11.9]} 15. Ne5 {[%clk
0:01:35.9]} 15... d6 {[%clk 0:01:53.2]} 16. Nd3 {[%clk 0:01:33.3]} 16... Qd7
{[%clk 0:01:18]} 17. Rfd1 {[%clk 0:01:18.4]} 17... Rae8 {[%clk 0:01:07.9]} 18.
Nf4 {[%clk 0:01:09.8]} 18... g5 {[%clk 0:01:01.4]} 19. Nd3 {[%clk 0:00:45.3]}
19... Ng6 {[%clk 0:01:00.7]} 20. a4 {[%clk 0:00:37.7]} 20... Qg7 {[%clk
0:00:57]} 21. Rac1 {[%clk 0:00:35.4]} 21... Bxg2 {[%clk 0:00:38.1]} 22. Kxg2
{[%clk 0:00:36.3]} 22... f4 {[%clk 0:00:38.8]} 23. c5 {[%clk 0:00:33.4]} 23...
Re7 {[%clk 0:00:28.6]} 24. cxd6 {[%clk 0:00:32.6]} 24... cxd6 {[%clk 0:00:29.5]}
25. Nb2 {[%clk 0:00:18.4]} 25... Qf6 {[%clk 0:00:25.9]} 26. Rf1 {[%clk
0:00:17.4]} 26... e5 {[%clk 0:00:22]} 27. dxe5 {[%clk 0:00:17.2]} 27... dxe5
{[%clk 0:00:22.9]} 28. Nc4 {[%clk 0:00:15.6]} 28... e4 {[%clk 0:00:18.5]} 29.
Qxf6 {[%clk 0:00:12.4]} 29... Rxf6 {[%clk 0:00:19.4]} 30. Rcd1 {[%clk 0:00:07]}
30... Ne5 {[%clk 0:00:16.1]} 31. Rd6 {[%clk 0:00:02.9]} 31... f3+ {[%clk
0:00:09.7]} 32. exf3 {[%clk 0:00:03.4]} 32... exf3+ {[%clk 0:00:10.4]} 33. Kg1
{[%clk 0:00:04.1]} 33... Rxd6 {[%clk 0:00:08.4]} 34. Nxd6 {[%clk 0:00:05]} 34...
Re6 {[%clk 0:00:04.9]} 35. Ne4 {[%clk 0:00:03.9]} 35... h6 {[%clk 0:00:05.1]}
36. Rd1 {[%clk 0:00:02.5]} 36... Nc4 {[%clk 0:00:04.7]} 37. Nc3 {[%clk 0:00:03]}
37... Kf7 {[%clk 0:00:04.1]} 38. Kf1 {[%clk 0:00:02.1]} 38... Rd6 {[%clk
0:00:01.9]} 39. Rxd6 {[%clk 0:00:02.1]} 39... Nxd6 {[%clk 0:00:02.8]} 40. Nd5
{[%clk 0:00:02.1]} 40... Nc4 {[%clk 0:00:03.2]} 41. Ke1 {[%clk 0:00:02.3]} 41...
Ke6 {[%clk 0:00:03.3]} 42. Nc7+ {[%clk 0:00:01.7]} 42... Ke5 {[%clk 0:00:03.5]}
43. Ne8 {[%clk 0:00:01.9]} 43... Nb2 {[%clk 0:00:02.9]} 44. Kd2 {[%clk
0:00:02.6]} 44... Nxa4 {[%clk 0:00:03]} 45. Ke3 {[%clk 0:00:03]} 45... Nc3
{[%clk 0:00:02.9]} 46. Kxf3 {[%clk 0:00:03.3]} 46... a4 {[%clk 0:00:03.1]} 47.
Ke3 {[%clk 0:00:04]} 47... a3 {[%clk 0:00:03.5]} 0-1

[Event "Late-Titled-Tuesday-Blitz-March-12-2024"]
[Site "Chess.com"]
[Date "2024.03.12"]
[Round "3"]
[White "ChainedDowntohell"]
[Black "Sokoloco"]
[Result "0-1"]
[WhiteElo "2535"]
[BlackElo "2794"]
[TimeControl "180+1"]
[EndTime "14:27:49 PDT"]
[Termination "Sokoloco won by resignation"]

1. e4 {[%clk 0:03:00.9]} 1... g6 {[%clk 0:02:58]} 2. d4 {[%clk 0:03:00]} 2...
Bg7 {[%clk 0:02:58.6]} 3. Nc3 {[%clk 0:02:59.7]} 3... d6 {[%clk 0:02:59.1]} 4.
Be3 {[%clk 0:02:58.6]} 4... a6 {[%clk 0:02:59.6]} 5. h4 {[%clk 0:02:56.1]} 5...
h6 {[%clk 0:02:59.5]} 6. f4 {[%clk 0:02:52.5]} 6... h5 {[%clk 0:02:53.3]} 7. Bd3
{[%clk 0:02:36.1]} 7... Nf6 {[%clk 0:02:53]} 8. f5 {[%clk 0:02:29]} 8... Ng4
{[%clk 0:02:51.5]} 9. Qd2 {[%clk 0:02:17.8]} 9... c5 {[%clk 0:02:49.7]} 10. dxc5
{[%clk 0:02:12.3]} 10... Nc6 {[%clk 0:01:53.4]} 11. fxg6 {[%clk 0:02:04.8]}
11... fxg6 {[%clk 0:01:52.4]} 12. Nf3 {[%clk 0:02:00.4]} 12... dxc5 {[%clk
0:01:34.2]} 13. O-O-O {[%clk 0:01:56.1]} 13... Nd4 {[%clk 0:01:27.2]} 14. e5
{[%clk 0:01:45.3]} 14... Bf5 {[%clk 0:00:16.1]} 15. Bxf5 {[%clk 0:01:33.3]}
15... Nxf5 {[%clk 0:00:15.9]} 16. Bxc5 {[%clk 0:01:29.6]} 16... Qc7 {[%clk
0:00:11.9]} 17. Bd6 {[%clk 0:01:13.7]} 17... exd6 {[%clk 0:00:10.3]} 18. exd6
{[%clk 0:01:13.5]} 18... Qd7 {[%clk 0:00:05.9]} 19. Rhe1+ {[%clk 0:01:08.5]}
19... Kf8 {[%clk 0:00:06.2]} 20. Ng5 {[%clk 0:01:04.9]} 20... Bh6 {[%clk
0:00:06.6]} 21. Nce4 {[%clk 0:00:59.6]} 21... Bxg5 {[%clk 0:00:02.5]} 22. Nxg5
{[%clk 0:00:56.7]} 22... Kg7 {[%clk 0:00:02.3]} 23. Qc3+ {[%clk 0:00:48.7]}
23... Kh6 {[%clk 0:00:03]} 24. Qd2 {[%clk 0:00:31.2]} 24... Kg7 {[%clk
0:00:03.2]} 25. Ne6+ {[%clk 0:00:23.7]} 25... Kf7 {[%clk 0:00:02.4]} 26. Nc7
{[%clk 0:00:17.9]} 26... Nf6 {[%clk 0:00:02.1]} 27. g4 {[%clk 0:00:14.3]} 27...
hxg4 {[%clk 0:00:02.2]} 28. Nxa8 {[%clk 0:00:09.9]} 28... Rxa8 {[%clk
0:00:01.9]} 29. h5 {[%clk 0:00:10.3]} 29... Nxh5 {[%clk 0:00:02.2]} 30. Qd5+
{[%clk 0:00:09.3]} 30... Kg7 {[%clk 0:00:02.5]} 31. Re6 {[%clk 0:00:08.4]} 31...
Nf6 {[%clk 0:00:02.8]} 32. Qe5 {[%clk 0:00:08.5]} 32... Rf8 {[%clk 0:00:03.4]}
33. Re7+ {[%clk 0:00:06.8]} 33... Nxe7 {[%clk 0:00:02.9]} 34. dxe7 {[%clk
0:00:07.4]} 34... Qxd1+ {[%clk 0:00:02.8]} 35. Kxd1 {[%clk 0:00:08.3]} 35... Re8
{[%clk 0:00:03.6]} 36. Kd2 {[%clk 0:00:03.1]} 36... Kf7 {[%clk 0:00:04.1]} 37.
Qc5 {[%clk 0:00:01.8]} 37... Rxe7 {[%clk 0:00:05]} 38. Qc4+ {[%clk 0:00:02.1]}
38... Kg7 {[%clk 0:00:05.4]} 39. Kd3 {[%clk 0:00:02.6]} 39... g3 {[%clk
0:00:05.4]} 40. Qf4 {[%clk 0:00:02.8]} 40... g2 {[%clk 0:00:05.4]} 41. Qg3
{[%clk 0:00:03.4]} 41... Rd7+ {[%clk 0:00:05.6]} 42. Ke2 {[%clk 0:00:02.9]}
42... Nd5 {[%clk 0:00:03.3]} 43. Kf2 {[%clk 0:00:01.7]} 43... Rf7+ {[%clk
0:00:03.2]} 44. Kxg2 {[%clk 0:00:02.1]} 44... Nf4+ {[%clk 0:00:03.9]} 45. Kh1
{[%clk 0:00:02.1]} 45... Rf5 {[%clk 0:00:04.1]} 46. Qc3+ {[%clk 0:00:02.4]}
46... Kh6 {[%clk 0:00:04.1]} 47. Kh2 {[%clk 0:00:02.8]} 47... Rh5+ {[%clk
0:00:04.1]} 48. Kg3 {[%clk 0:00:01.9]} 48... Ne2+ {[%clk 0:00:04.8]} 49. Kg4
{[%clk 0:00:02.5]} 49... Nxc3 {[%clk 0:00:05.7]} 0-1

[Event "Late-Titled-Tuesday-Blitz-March-12-2024"]
[Site "Chess.com"]
[Date "2024.03.12"]
[Round "3"]
[White "scarabee43"]
[Black "Mikayel99"]
[Result "0-1"]
[WhiteElo "2836"]
[BlackElo "2566"]
[TimeControl "180+1"]
[EndTime "14:27:50 PDT"]
[Termination "Mikayel99 won by resignation"]

1. Nf3 {[%clk 0:03:00.9]} 1... d5 {[%clk 0:02:57.7]} 2. e3 {[%clk 0:03:00.7]}
2... Nf6 {[%clk 0:02:57.6]} 3. c4 {[%clk 0:03:00.7]} 3... c6 {[%clk 0:02:58.3]}
4. Nc3 {[%clk 0:03:00.9]} 4... e6 {[%clk 0:02:56.8]} 5. b3 {[%clk 0:03:00.9]}
5... Bd6 {[%clk 0:02:55.4]} 6. Bb2 {[%clk 0:03:01.4]} 6... a6 {[%clk 0:02:45.8]}
7. d4 {[%clk 0:02:59.8]} 7... b5 {[%clk 0:02:41.3]} 8. Bd3 {[%clk 0:02:43]} 8...
O-O {[%clk 0:02:39]} 9. O-O {[%clk 0:02:42.4]} 9... Nbd7 {[%clk 0:02:39.5]} 10.
e4 {[%clk 0:02:41.9]} 10... dxe4 {[%clk 0:02:36.2]} 11. Nxe4 {[%clk 0:02:42.3]}
11... Nxe4 {[%clk 0:02:36.9]} 12. Bxe4 {[%clk 0:02:42.9]} 12... Nf6 {[%clk
0:02:37.4]} 13. Bxc6 {[%clk 0:02:41.9]} 13... Rb8 {[%clk 0:02:38]} 14. Qd2
{[%clk 0:02:06.3]} 14... bxc4 {[%clk 0:02:33.4]} 15. Ba4 {[%clk 0:01:47.9]}
15... cxb3 {[%clk 0:02:28.6]} 16. Bxb3 {[%clk 0:01:48.3]} 16... Bb7 {[%clk
0:02:28.6]} 17. Qe2 {[%clk 0:01:42.5]} 17... Bd5 {[%clk 0:02:17]} 18. Ne5 {[%clk
0:01:36.5]} 18... Bxb3 {[%clk 0:01:54.4]} 19. axb3 {[%clk 0:01:27.7]} 19... Rxb3
{[%clk 0:01:52.2]} 20. Rxa6 {[%clk 0:01:28.4]} 20... Nd5 {[%clk 0:01:47]} 21.
Bc1 {[%clk 0:00:57.6]} 21... Bxe5 {[%clk 0:01:35.5]} 22. dxe5 {[%clk 0:00:54.8]}
22... Rb1 {[%clk 0:01:27.8]} 23. g3 {[%clk 0:00:28.2]} 23... Qc8 {[%clk
0:01:22.4]} 24. Ba3 {[%clk 0:00:20.6]} 24... Rxf1+ {[%clk 0:01:21.3]} 25. Kxf1
{[%clk 0:00:21.3]} 25... Rd8 {[%clk 0:01:08.2]} 26. Bd6 {[%clk 0:00:16.1]} 26...
h6 {[%clk 0:01:00.9]} 27. Ra3 {[%clk 0:00:15]} 27... Qc1+ {[%clk 0:00:58.6]} 28.
Kg2 {[%clk 0:00:14.4]} 28... Qb1 {[%clk 0:00:54.4]} 29. Qf3 {[%clk 0:00:12.3]}
29... Rc8 {[%clk 0:00:52.8]} 30. Ra7 {[%clk 0:00:11.3]} 30... Qg6 {[%clk
0:00:53.4]} 31. h4 {[%clk 0:00:10]} 31... h5 {[%clk 0:00:53.9]} 32. Ra2 {[%clk
0:00:06.2]} 32... Rc3 {[%clk 0:00:49]} 33. Ra8+ {[%clk 0:00:05.9]} 33... Kh7
{[%clk 0:00:49]} 34. Qd1 {[%clk 0:00:04.8]} 34... Rc2 {[%clk 0:00:43]} 35. Qe1
{[%clk 0:00:03.8]} 35... Nf4+ {[%clk 0:00:38.6]} 36. Kf1 {[%clk 0:00:04.3]}
36... Qd3+ {[%clk 0:00:32.3]} 37. Kg1 {[%clk 0:00:04.5]} 37... Nh3+ {[%clk
0:00:32]} 38. Kg2 {[%clk 0:00:04.5]} 38... Rxf2+ {[%clk 0:00:27.4]} 39. Qxf2
{[%clk 0:00:03.1]} 39... Nxf2 {[%clk 0:00:27]} 40. Kxf2 {[%clk 0:00:03.8]} 40...
Qd2+ {[%clk 0:00:26.2]} 41. Kf1 {[%clk 0:00:04.5]} 41... Qd3+ {[%clk 0:00:23.2]}
42. Kf2 {[%clk 0:00:04.5]} 42... Qd2+ {[%clk 0:00:23.7]} 43. Kf1 {[%clk
0:00:04.9]} 43... Qe3 {[%clk 0:00:24.3]} 44. Ra3 {[%clk 0:00:04.4]} 44... Qc1+
{[%clk 0:00:23.7]} 45. Kg2 {[%clk 0:00:04.3]} 45... g5 {[%clk 0:00:19]} 46. hxg5
{[%clk 0:00:04.3]} 46... Kg6 {[%clk 0:00:18.7]} 47. Rf3 {[%clk 0:00:04.6]} 47...
Qc6 {[%clk 0:00:17.8]} 48. Kf2 {[%clk 0:00:04.7]} 48... Kxg5 {[%clk 0:00:17.3]}
49. Rxf7 {[%clk 0:00:04.6]} 49... Qc2+ {[%clk 0:00:16.8]} 50. Kg1 {[%clk
0:00:05]} 50... Kg4 {[%clk 0:00:15.1]} 51. Rg7+ {[%clk 0:00:05.2]} 51... Kh3
{[%clk 0:00:14.8]} 52. Kf1 {[%clk 0:00:05.3]} 52... Qd2 {[%clk 0:00:07.1]} 53.
Rg6 {[%clk 0:00:05]} 53... Qd3+ {[%clk 0:00:07.3]} 54. Kf2 {[%clk 0:00:05.3]}
54... Qxg6 {[%clk 0:00:08.2]} 0-1

[Event "Late-Titled-Tuesday-Blitz-March-12-2024"]
[Site "Chess.com"]
[Date "2024.03.12"]
[Round "3"]
[White "manitodeplomo"]
[Black "N_Mullodzhanov"]
[Result "1-0"]
[WhiteElo "2703"]
[BlackElo "2515"]
[TimeControl "180+1"]
[EndTime "14:27:50 PDT"]
[Termination "manitodeplomo won by checkmate"]

1. d4 {[%clk 0:02:39.1]} 1... Nf6 {[%clk 0:02:59.9]} 2. c4 {[%clk 0:02:36.7]}
2... g6 {[%clk 0:02:59.9]} 3. Nc3 {[%clk 0:02:34.2]} 3... Bg7 {[%clk 0:03:00.1]}
4. e4 {[%clk 0:02:34.4]} 4... d6 {[%clk 0:03:00.4]} 5. Be2 {[%clk 0:02:34]} 5...
O-O {[%clk 0:03:00.4]} 6. Nf3 {[%clk 0:02:33]} 6... e5 {[%clk 0:03:00.6]} 7. d5
{[%clk 0:02:33.2]} 7... Na6 {[%clk 0:02:59.2]} 8. Be3 {[%clk 0:02:29.4]} 8...
Nh5 {[%clk 0:02:59]} 9. g3 {[%clk 0:02:28.6]} 9... f5 {[%clk 0:02:54.5]} 10.
exf5 {[%clk 0:02:21.2]} 10... Bxf5 {[%clk 0:02:50.6]} 11. Nd2 {[%clk 0:02:03.7]}
11... Nb4 {[%clk 0:02:38.6]} 12. Nde4 {[%clk 0:01:59.7]} 12... Nf6 {[%clk
0:02:31.6]} 13. f3 {[%clk 0:01:58.1]} 13... a5 {[%clk 0:02:15.6]} 14. a3 {[%clk
0:01:54.1]} 14... Na6 {[%clk 0:02:14.1]} 15. O-O {[%clk 0:01:51.5]} 15... b6
{[%clk 0:02:08.2]} 16. Bd3 {[%clk 0:01:37.2]} 16... Nc5 {[%clk 0:01:33.8]} 17.
Bc2 {[%clk 0:01:24.4]} 17... Ncxe4 {[%clk 0:01:27.8]} 18. Nxe4 {[%clk
0:01:20.1]} 18... Nxe4 {[%clk 0:01:27.8]} 19. Bxe4 {[%clk 0:01:18.9]} 19... Qd7
{[%clk 0:01:16.1]} 20. b4 {[%clk 0:01:08.9]} 20... h6 {[%clk 0:00:50.1]} 21. Qd3
{[%clk 0:00:58.6]} 21... Kh7 {[%clk 0:00:47.1]} 22. Rfc1 {[%clk 0:00:52.5]}
22... Bxe4 {[%clk 0:00:39.8]} 23. Qxe4 {[%clk 0:00:51.9]} 23... Qf5 {[%clk
0:00:39.7]} 24. Kg2 {[%clk 0:00:50.8]} 24... axb4 {[%clk 0:00:33.4]} 25. axb4
{[%clk 0:00:50.3]} 25... Qxe4 {[%clk 0:00:28.7]} 26. fxe4 {[%clk 0:00:49.7]}
26... h5 {[%clk 0:00:26.1]} 27. b5 {[%clk 0:00:39.9]} 27... Bh6 {[%clk
0:00:23.9]} 28. Bxh6 {[%clk 0:00:39.1]} 28... Kxh6 {[%clk 0:00:24.8]} 29. Ra6
{[%clk 0:00:38.8]} 29... Rxa6 {[%clk 0:00:16.6]} 30. bxa6 {[%clk 0:00:39.7]}
30... Ra8 {[%clk 0:00:17]} 31. Ra1 {[%clk 0:00:40.1]} 31... Ra7 {[%clk
0:00:17.7]} 32. Kf3 {[%clk 0:00:40.5]} 32... Kg5 {[%clk 0:00:18]} 33. h3 {[%clk
0:00:39.7]} 33... Kf6 {[%clk 0:00:18]} 34. Ke3 {[%clk 0:00:39.6]} 34... g5
{[%clk 0:00:18.2]} 35. Kd3 {[%clk 0:00:38]} 35... Ke7 {[%clk 0:00:18.5]} 36. Kc3
{[%clk 0:00:38.1]} 36... Kd7 {[%clk 0:00:18.7]} 37. Kb4 {[%clk 0:00:38.1]} 37...
c6 {[%clk 0:00:18]} 38. dxc6+ {[%clk 0:00:31.3]} 38... Kxc6 {[%clk 0:00:18.9]}
39. Ra2 {[%clk 0:00:31.2]} 39... g4 {[%clk 0:00:15.9]} 40. h4 {[%clk 0:00:30.1]}
40... Ra8 {[%clk 0:00:16]} 41. a7 {[%clk 0:00:22.7]} 41... Kb7 {[%clk
0:00:16.9]} 42. Kb5 {[%clk 0:00:22.3]} 42... Rxa7 {[%clk 0:00:01.8]} 43. Rxa7+
{[%clk 0:00:21.7]} 43... Kxa7 {[%clk 0:00:02.7]} 44. Kc6 {[%clk 0:00:22.2]}
44... Ka6 {[%clk 0:00:03.6]} 45. Kxd6 {[%clk 0:00:22.5]} 45... b5 {[%clk
0:00:02.1]} 46. cxb5+ {[%clk 0:00:22.2]} 46... Kxb5 {[%clk 0:00:03]} 47. Kxe5
{[%clk 0:00:22.5]} 47... Kc4 {[%clk 0:00:03.9]} 48. Kf4 {[%clk 0:00:22.2]} 48...
Kd4 {[%clk 0:00:03.9]} 49. e5 {[%clk 0:00:22.4]} 49... Kd5 {[%clk 0:00:03.9]}
50. Kf5 {[%clk 0:00:22.6]} 50... Kd4 {[%clk 0:00:04.5]} 51. e6 {[%clk
0:00:21.6]} 51... Ke3 {[%clk 0:00:05.4]} 52. e7 {[%clk 0:00:21.1]} 52... Kf3
{[%clk 0:00:06.3]} 53. e8=Q {[%clk 0:00:21.4]} 53... Kxg3 {[%clk 0:00:07.2]} 54.
Qxh5 {[%clk 0:00:20.7]} 54... Kh3 {[%clk 0:00:05.9]} 55. Qxg4+ {[%clk
0:00:18.9]} 55... Kh2 {[%clk 0:00:06.4]} 56. Kf4 {[%clk 0:00:18.8]} 56... Kh1
{[%clk 0:00:07.3]} 57. Kf3 {[%clk 0:00:19]} 57... Kh2 {[%clk 0:00:08.2]} 58.
Qg2# {[%clk 0:00:19.2]} 1-0